fUST/lending_fUST_20250417
["ID","MTS","AMOUNT","RATE_DAILY","PERIOD"]
[358208288,1744845884092,-500.0,0.00024657,2]
[358208289,1744845884115,-500.0,0.00024657,2]
[358208290,1744845884139,-500.0,0.00024657,2]
[358208291,1744845884163,-500.0,0.00024657,2]
[358208292,1744845884188,-500.0,0.00024657,2]
[358208293,1744845884212,-822.18,0.00024657,2]
[358208294,1744845884236,-1950.09,0.00024657,2]
[358208295,1744845884260,-500.0,0.00024657,2]
[358208296,1744845884284,-628.52,0.00024657,2]
[358208297,1744845884307,-500.0,0.00024657,2]
[358208298,1744845884330,-500.0,0.00024657,2]
[358208299,1744845884354,-500.0,0.00024657,2]
[358208300,1744845884378,-1432.59,0.00024657,2]
[358208301,1744845884402,-500.0,0.00024657,2]
[358208302,1744845884426,-574.24,0.00024657,2]
[358208303,1744845884449,-500.0,0.00024657,2]
[358208304,1744845884473,-500.0,0.00024657,2]
[358208305,1744845884497,-783.16,0.00024657,2]
[358208306,1744845884521,-500.0,0.00024657,2]
[358208307,1744845884549,-500.0,0.00024657,2]
[358208308,1744845884573,-539.82,0.00024657,2]
[358208309,1744845884597,-500.0,0.00024657,2]
[358208310,1744845884630,-1152.62,0.00024657,2]
[358208311,1744845884660,-500.0,0.00024657,2]
[358208312,1744845884687,-500.0,0.00024657,2]
[358208313,1744845884714,-500.0,0.00024657,2]
[358208314,1744845884739,-500.0,0.00024657,2]
[358208315,1744845884766,-704.9,0.00024657,2]
[358208316,1744845884792,-500.0,0.00024657,2]
[358208317,1744845884819,-941.98,0.00024657,2]
[358208318,1744845884846,-500.0,0.00024657,2]
[358208319,1744845884872,-500.0,0.00024657,2]
[358208320,1744845884898,-500.0,0.00024657,2]
[358208321,1744845884925,-2365.29,0.00024657,2]
[358208322,1744845884952,-693.13,0.00024657,2]
[358208323,1744845884978,-1705.86,0.00024657,2]
[358208324,1744845885004,-955.22,0.00024657,2]
[358208325,1744845885030,-500.0,0.00024657,2]
[358208326,1744845885057,-593.34,0.00024657,2]
[358208327,1744845885083,-729.8,0.00024657,2]
[358208328,1744845885110,-500.0,0.00024657,2]
[358208329,1744845885136,-847.39,0.00024657,2]
[358208330,1744845885163,-500.0,0.00024657,2]
[358208331,1744845885189,-500.0,0.00024657,2]
[358208332,1744845885215,-500.0,0.00024657,2]
[358208333,1744845885241,-500.0,0.00024657,2]
[358208334,1744845885268,-500.0,0.00024657,2]
[358208335,1744845885294,-1728.5,0.00024657,2]
[358208336,1744845885319,-969.55,0.00024657,2]
[358208337,1744845885344,-500.0,0.00024657,2]
[358208338,1744845885369,-500.0,0.00024657,2]
[358208339,1744845885394,-2326.96,0.00024657,2]
[358208340,1744845885419,-500.0,0.00024657,2]
[358208341,1744845885638,-500.0,0.00024657,2]
[358208342,1744845885663,-928.23,0.00024657,2]
[358208343,1744845885687,-1426.25,0.00024657,2]
[358208344,1744845885711,-500.0,0.00024657,2]
[358208345,1744845885734,-500.0,0.00024657,2]
[358208346,1744845885759,-500.0,0.00024657,2]
[358208347,1744845885784,-500.0,0.00024657,2]
[358208348,1744845885807,-1623.75,0.00024657,2]
[358208349,1744845885830,-500.0,0.00024657,2]
[358208350,1744845885853,-500.0,0.00024657,2]
[358208351,1744845885877,-653.55,0.00024657,2]
[358208352,1744845885901,-923.12,0.00024657,2]
[358208353,1744845885924,-254.34066916,0.00024657,2]
[358208366,1744846231888,-255.7668019,0.00023623,2]
[358208368,1744846231898,-224.1872157,0.00024163,2]
[358208370,1744846231908,-57.26194014,0.000245,2]
[358208386,1744846234003,-3942.73805986,0.000245,2]
[358208387,1744846234013,-2249.0,0.00024649,2]
[358208388,1744846234023,-300.0,0.00024656,2]
[358208389,1744846234032,-4160.50838377,0.00024657,2]
[358208390,1744846234044,-524.69668921,0.00024657,2]
[358208391,1744846234056,-2638.0,0.00024657,2]
[358208392,1744846234071,-1565.04780881,0.00024657,2]
[358208393,1744846234081,-9701.40730908,0.00024657,3]
[358208394,1744846234092,-871.80933084,0.00024657,2]
[358208395,1744846234101,-500.0,0.00024657,2]
[358208396,1744846234111,-500.0,0.00024657,2]
[358208397,1744846234120,-821.44,0.00024657,2]
[358208398,1744846234129,-500.0,0.00024657,2]
[358208399,1744846234138,-500.0,0.00024657,2]
[358208400,1744846234148,-500.0,0.00024657,2]
[358208401,1744846234157,-500.0,0.00024657,2]
[358208402,1744846234166,-500.0,0.00024657,2]
[358208403,1744846234176,-500.0,0.00024657,2]
[358208404,1744846234185,-500.0,0.00024657,2]
[358208405,1744846234195,-500.0,0.00024657,2]
[358208406,1744846234204,-2296.64,0.00024657,2]
[358208407,1744846234214,-500.0,0.00024657,2]
[358208408,1744846234223,-500.0,0.00024657,2]
[358208409,1744846234233,-597.59,0.00024657,2]
[358208410,1744846234242,-500.0,0.00024657,2]
[358208411,1744846234252,-500.0,0.00024657,2]
[358208412,1744846234261,-500.0,0.00024657,2]
[358208413,1744846234271,-500.0,0.00024657,2]
[358208414,1744846234280,-1113.21,0.00024657,2]
[358208415,1744846234290,-500.0,0.00024657,2]
[358208416,1744846234300,-500.0,0.00024657,2]
[358208417,1744846234310,-500.0,0.00024657,2]
[358208418,1744846234320,-8692.76,0.00024657,2]
[358208419,1744846234330,-629.69,0.00024657,2]
[358208420,1744846234340,-651.87,0.00024657,2]
[358208421,1744846234350,-515.57749239,0.00024657,2]
[358208422,1744846234360,-1398.15528229,0.00024657,2]
[358208450,1744846238226,-50.63471771,0.00024657,2]
[358208452,1744846238240,-1000.0,0.00024657,2]
[358208455,1744846238253,-1569.34,0.00024657,2]
[358208457,1744846238266,-500.0,0.00024657,2]
[358208459,1744846238277,-500.0,0.00024657,2]
[358208461,1744846238289,-950.68,0.00024657,2]
[358208464,1744846238301,-500.0,0.00024657,2]
[358208466,1744846238313,-722.42,0.00024657,2]
[358208468,1744846238326,-500.0,0.00024657,2]
[358208471,1744846238340,-748.44,0.00024657,2]
[358208473,1744846238353,-500.0,0.00024657,2]
[358208475,1744846238368,-500.0,0.00024657,2]
[358208476,1744846238381,-200.68941489,0.00024657,2]
[358208477,1744846238399,-643.73830764,0.00024657,2]
[358208481,1744846240205,-82.51227747,0.00024657,2]
[358208482,1744846240218,-500.0,0.00024657,2]
[358208483,1744846240241,-500.0,0.00024657,2]
[358208484,1744846240258,-500.0,0.00024657,2]
[358208485,1744846240276,-636.24,0.00024657,2]
[358208486,1744846240292,-521.59,0.00024657,2]
[358208487,1744846240306,-687.5,0.00024657,2]
[358208488,1744846240322,-500.0,0.00024657,2]
[358208489,1744846240336,-286.34149448,0.00024657,2]
[358208490,1744846240350,-1083.6,0.00024657,2]
[358208491,1744846240363,-426.31296612,0.00024657,2]
[358208492,1744846240377,-510.14,0.00024657,2]
[358208493,1744846240391,-500.0,0.00024657,2]
[358208494,1744846240403,-566.67,0.00024657,2]
[358208495,1744846240417,-500.0,0.00024657,2]
[358208496,1744846240429,-555.37,0.00024657,2]
[358208497,1744846240442,-534.75896105,0.00024657,2]
[358208498,1744846240455,-840.5,0.00024657,2]
[358208499,1744846240468,-500.0,0.00024657,2]
[358208500,1744846240481,-500.0,0.00024657,2]
[358208501,1744846240494,-500.0,0.00024657,2]
[358208502,1744846240507,-500.0,0.00024657,2]
[358208503,1744846240519,-500.0,0.00024657,2]
[358208504,1744846240531,-590.06,0.00024657,2]
[358208505,1744846240543,-500.0,0.00024657,2]
[358208506,1744846240555,-500.0,0.00024657,2]
[358208507,1744846240568,-500.0,0.00024657,2]
[358208508,1744846240580,-712.04,0.00024657,2]
[358208509,1744846240592,-1043.19,0.00024657,2]
[358208510,1744846240604,-500.0,0.00024657,2]
[358208511,1744846240616,-500.0,0.00024657,2]
[358208512,1744846240628,-849.86,0.00024657,2]
[358208513,1744846240640,-500.0,0.00024657,2]
[358208514,1744846240654,-500.0,0.00024657,2]
[358208515,1744846240667,-286.38415168,0.00024657,2]
[358208516,1744846240679,-500.0,0.00024657,2]
[358208517,1744846240691,-500.0,0.00024657,2]
[358208518,1744846240703,-500.0,0.00024657,2]
[358208519,1744846240715,-596.77470703,0.00024657,2]
[358208520,1744846240730,-500.0,0.00024657,2]
[358208521,1744846240743,-500.0,0.00024657,2]
[358208522,1744846240757,-317.44674139,0.00024657,2]
[358208532,1744846243084,-182.55325861,0.00024657,2]
[358208533,1744846243094,-500.0,0.00024657,2]
[358208534,1744846243103,-630.94,0.00024657,2]
[358208535,1744846243113,-500.0,0.00024657,2]
[358208536,1744846243123,-1147.54,0.00024657,2]
[358208537,1744846243132,-1005.61,0.00024657,2]
[358208538,1744846243142,-61.11431993,0.00024657,2]
[358208545,1744846246018,-438.88568007,0.00024657,2]
[358208546,1744846246028,-500.0,0.00024657,2]
[358208547,1744846246037,-809.7,0.00024657,2]
[358208548,1744846246047,-676.04,0.00024657,2]
[358208549,1744846246056,-500.0,0.00024657,2]
[358208550,1744846246066,-500.0,0.00024657,2]
[358208551,1744846246075,-500.0,0.00024657,2]
[358208552,1744846246085,-500.0,0.00024657,2]
[358208553,1744846246094,-695.8,0.00024657,2]
[358208554,1744846246104,-936.99,0.00024657,2]
[358208555,1744846246114,-906.45,0.00024657,2]
[358208556,1744846246123,-4241.18,0.00024657,2]
[358208557,1744846246134,-500.0,0.00024657,2]
[358208558,1744846246145,-661.35,0.00024657,2]
[358208559,1744846246155,-800.36,0.00024657,2]
[358208560,1744846246164,-1093.62,0.00024657,2]
[358208561,1744846246174,-1401.88,0.00024657,2]
[358208562,1744846246184,-449.48074893,0.00024657,2]
[358213015,1744847440341,-490.14778723,0.00022557,2]
[358213016,1744847440351,-2008.6155069,0.000235,2]
[358213017,1744847440360,-418.97493665,0.00024028,2]
[358213018,1744847440370,-383.88664083,0.00024063,2]
[358213020,1744847440380,-201.7684941,0.00024163,2]
[358213021,1744847440391,-3000.0,0.000245,2]
[358213022,1744847440400,-300.0,0.00024555,2]
[358213023,1744847440410,-300.0,0.00024555,2]
[358213024,1744847440420,-500.0,0.00024556,2]
[358213026,1744847440429,-259.18993577,0.00024556,2]
[358213027,1744847440438,-500.0,0.00024556,2]
[358213028,1744847440449,-500.0,0.00024556,2]
[358213029,1744847440458,-500.0,0.00024556,2]
[358213030,1744847440469,-500.0,0.00024556,2]
[358213032,1744847440478,-500.0,0.00024556,2]
[358213033,1744847440488,-500.0,0.00024556,2]
[358213034,1744847440498,-524.33141463,0.00024556,2]
[358213035,1744847440508,-174.68285285,0.00024556,2]
[358213036,1744847440518,-14702.81670923,0.00024557,2]
[358213037,1744847440528,-4850.70365454,0.00024557,3]
[358213039,1744847440539,-101957.61290149,0.00024557,2]
[358213040,1744847440549,-160.75552848,0.00024656,2]
[358213041,1744847440558,-1679.77,0.00024657,2]
[358213042,1744847440568,-4091.6,0.00024657,2]
[358213043,1744847440578,-1171.38,0.00024657,2]
[358213045,1744847440588,-797.82,0.00024657,2]
[358213046,1744847440599,-4360.84,0.00024657,2]
[358213047,1744847440608,-500.0,0.00024657,2]
[358213048,1744847440619,-500.0,0.00024657,2]
[358213049,1744847440628,-500.0,0.00024657,2]
[358213051,1744847440638,-500.0,0.00024657,2]
[358213052,1744847440647,-500.0,0.00024657,2]
[358213053,1744847440657,-500.0,0.00024657,2]
[358213054,1744847440666,-129.38396373,0.00024657,2]
[358213055,1744847440683,-370.61603627,0.00024657,2]
[358213057,1744847440693,-555.55283239,0.00024657,2]
[358213142,1744847444845,-366.45182833,0.00024657,2]
[358213177,1744847446350,-273.38533928,0.00024657,2]
[358213178,1744847446360,-145.58959737,0.00024657,2]
[358215133,1744848638488,-250.0,0.00022457,2]
[358215135,1744848638500,-250.0,0.00022457,2]
[358215137,1744848638511,-563.30914784,0.00022557,2]
[358215139,1744848638521,-161.40316644,0.0002344,2]
[358215141,1744848638530,-772.9176817,0.0002354,2]
[358215143,1744848638540,-489.9019221,0.00023557,2]
[358215145,1744848638550,-161.40316644,0.00023818,2]
[358215147,1744848638560,-181.5916447,0.00024163,2]
[358215149,1744848638570,-161.40316644,0.00024196,2]
[358215151,1744848638579,-156.8657715,0.000242,2]
[358215153,1744848638588,-218.9376004,0.000242,2]
[358215155,1744848638598,-579.4413499,0.000242,2]
[358215157,1744848638607,-300.0,0.00024295,2]
[358215159,1744848638616,-444.47006239,0.00024295,2]
[358215161,1744848638625,-184.42234252,0.00024295,2]
[358215163,1744848638636,-500.0,0.00024295,2]
[358215165,1744848638645,-500.0,0.00024295,2]
[358215168,1744848638655,-500.0,0.00024295,2]
[358215169,1744848638664,-500.0,0.00024295,2]
[358215172,1744848638674,-325.26231223,0.00024295,2]
[358215174,1744848638683,-500.0,0.00024295,2]
[358215176,1744848638692,-500.0,0.00024295,2]
[358215178,1744848638702,-500.0,0.00024295,2]
[358215180,1744848638711,-500.0,0.00024295,2]
[358215182,1744848638720,-500.0,0.00024295,2]
[358215184,1744848638730,-500.0,0.00024295,2]
[358215185,1744848638742,-500.0,0.00024295,2]
[358215187,1744848638752,-500.0,0.00024295,2]
[358215189,1744848638761,-504.60124834,0.00024295,2]
[358215191,1744848638770,-500.0,0.00024295,2]
[358215193,1744848638779,-500.0,0.00024295,2]
[358215195,1744848638789,-500.0,0.00024295,2]
[358215198,1744848638798,-500.0,0.00024295,2]
[358215199,1744848638808,-500.0,0.00024295,2]
[358215203,1744848638828,-5000.0,0.000243,2]
[358215205,1744848638840,-8869.55545232,0.00024457,2]
[358215207,1744848638853,-6315.52558452,0.00024457,2]
[358215209,1744848638863,-174.68285285,0.00024557,2]
[358215211,1744848638874,-492.81085639,0.00024594,2]
[358215212,1744848638884,-500.0,0.00024656,2]
[358215213,1744848638894,-192.55077476,0.00024656,2]
[358215214,1744848638906,-500.0,0.00024656,2]
[358215216,1744848638916,-5382.08902365,0.00024657,2]
[358215218,1744848638929,-800.0,0.00024657,2]
[358215305,1744848640617,-791.3323053,0.00024657,2]
[358215306,1744848640889,-1052.69764688,0.00024657,2]
[358215307,1744848640917,-1601.60000003,0.00024657,2]
[358215308,1744848640929,-434.92791691,0.00024657,2]
[358215309,1744848640945,-1573.8049801,0.00024657,2]
[358215310,1744848640957,-13344.30161592,0.00024657,2]
[358215311,1744848640967,-2425.35182727,0.00024657,3]
[358215312,1744848640977,-1609.78,0.00024657,2]
[358215313,1744848640987,-2018.83619381,0.00024657,2]
[358215314,1744848640999,-482.02195921,0.00024657,2]
[358215315,1744848641011,-1420.25184698,0.00024657,2]
[358215316,1744848641021,-764.58,0.00024657,2]
[358215317,1744848641031,-439.62625418,0.00024657,2]
[358215318,1744848641044,-682.94374582,0.00024657,2]
[358215319,1744848641054,-77.75823724,0.00024657,2]
[358215328,1744848643430,-859.23891075,0.00024557,2]
[358215329,1744848643441,-4101.38176276,0.00024657,2]
[358215330,1744848643451,-500.0,0.00024657,2]
[358215331,1744848643461,-500.0,0.00024657,2]
[358215332,1744848643474,-664.25,0.00024657,2]
[358215333,1744848643484,-264.34885492,0.00024657,2]
[358215334,1744848643494,-548.08,0.00024657,2]
[358215335,1744848643504,-500.0,0.00024657,2]
[358215336,1744848643515,-500.0,0.00024657,2]
[358215337,1744848643525,-500.0,0.00024657,2]
[358215338,1744848643535,-500.0,0.00024657,2]
[358215339,1744848643547,-500.0,0.00024657,2]
[358215340,1744848643558,-500.0,0.00024657,2]
[358215341,1744848643569,-372.03808527,0.00024657,2]
[358215342,1744848643579,-500.0,0.00024657,2]
[358215343,1744848643590,-500.0,0.00024657,2]
[358215344,1744848643600,-500.0,0.00024657,2]
[358215345,1744848643611,-500.0,0.00024657,2]
[358215346,1744848643620,-500.0,0.00024657,2]
[358215347,1744848643630,-1045.21,0.00024657,2]
[358215348,1744848643640,-500.0,0.00024657,2]
[358215349,1744848643649,-500.0,0.00024657,2]
[358215350,1744848643659,-500.0,0.00024657,2]
[358215351,1744848643668,-500.0,0.00024657,2]
[358215352,1744848643678,-557.46,0.00024657,2]
[358215353,1744848643688,-4479.69,0.00024657,2]
[358215354,1744848643698,-500.0,0.00024657,2]
[358215355,1744848643707,-500.0,0.00024657,2]
[358215356,1744848643718,-500.0,0.00024657,2]
[358215357,1744848643728,-500.0,0.00024657,2]
[358215358,1744848643738,-873.11,0.00024657,2]
[358215359,1744848643748,-500.0,0.00024657,2]
[358215360,1744848643758,-500.0,0.00024657,2]
[358215361,1744848643768,-500.0,0.00024657,2]
[358215362,1744848643778,-501.33,0.00024657,2]
[358215363,1744848643788,-500.0,0.00024657,2]
[358215364,1744848643797,-500.0,0.00024657,2]
[358215365,1744848643807,-500.0,0.00024657,2]
[358215366,1744848643817,-500.0,0.00024657,2]
[358215367,1744848643827,-500.0,0.00024657,2]
[358215368,1744848643837,-851.31,0.00024657,2]
[358215369,1744848643847,-500.0,0.00024657,2]
[358215370,1744848643856,-500.0,0.00024657,2]
[358215371,1744848643866,-500.0,0.00024657,2]
[358215372,1744848643876,-500.0,0.00024657,2]
[358215373,1744848643886,-500.0,0.00024657,2]
[358215374,1744848643895,-563.06,0.00024657,2]
[358215375,1744848643906,-688.74,0.00024657,2]
[358215376,1744848643916,-500.0,0.00024657,2]
[358215377,1744848643928,-500.0,0.00024657,2]
[358215378,1744848643938,-500.0,0.00024657,2]
[358215379,1744848643948,-1703.25,0.00024657,2]
[358215380,1744848643959,-510.05,0.00024657,2]
[358215381,1744848643969,-676.9,0.00024657,2]
[358215382,1744848643979,-653.94,0.00024657,2]
[358215383,1744848643990,-500.0,0.00024657,2]
[358215384,1744848643999,-500.0,0.00024657,2]
[358215385,1744848644009,-500.0,0.00024657,2]
[358215386,1744848644019,-500.0,0.00024657,2]
[358215387,1744848644028,-500.0,0.00024657,2]
[358215388,1744848644038,-500.0,0.00024657,2]
[358215389,1744848644048,-500.0,0.00024657,2]
[358215390,1744848644058,-500.0,0.00024657,2]
[358215391,1744848644069,-500.0,0.00024657,2]
[358215392,1744848644079,-777.36,0.00024657,2]
[358215393,1744848644089,-500.0,0.00024657,2]
[358215394,1744848644099,-4248.86,0.00024657,2]
[358215395,1744848644109,-500.0,0.00024657,2]
[358215396,1744848644121,-500.0,0.00024657,2]
[358215397,1744848644131,-697.22,0.00024657,2]
[358215398,1744848644141,-500.0,0.00024657,2]
[358215399,1744848644151,-500.0,0.00024657,2]
[358215400,1744848644160,-500.0,0.00024657,2]
[358215401,1744848644170,-1343.47,0.00024657,2]
[358215402,1744848644180,-500.0,0.00024657,2]
[358215403,1744848644190,-500.0,0.00024657,2]
[358215404,1744848644200,-517.32,0.00024657,2]
[358215405,1744848644209,-500.0,0.00024657,2]
[358215406,1744848644219,-500.0,0.00024657,2]
[358215407,1744848644229,-787.92,0.00024657,2]
[358215408,1744848644239,-500.0,0.00024657,2]
[358215409,1744848644249,-1428.29,0.00024657,2]
[358215410,1744848644258,-500.0,0.00024657,2]
[358215411,1744848644268,-550.31,0.00024657,2]
[358215412,1744848644279,-500.0,0.00024657,2]
[358215413,1744848644289,-500.0,0.00024657,2]
[358215414,1744848644311,-500.0,0.00024657,2]
[358215415,1744848644322,-500.0,0.00024657,2]
[358215416,1744848644332,-500.0,0.00024657,2]
[358215417,1744848644342,-500.0,0.00024657,2]
[358215418,1744848644352,-500.0,0.00024657,2]
[358215419,1744848644362,-675.53,0.00024657,2]
[358215420,1744848644372,-500.0,0.00024657,2]
[358215421,1744848644383,-46.33238605,0.00024657,2]
[358215422,1744848644410,-847.92286168,0.00024657,2]
[358215423,1744848644422,-235.11475227,0.00024657,2]
[358215424,1744848644431,-409.83978144,0.00024657,2]
[358215438,1744848646555,-90.16021856,0.00024657,2]
[358215439,1744848646565,-2757.29,0.00024657,2]
[358215440,1744848646574,-889.55,0.00024657,2]
[358215441,1744848646584,-500.0,0.00024657,2]
[358215442,1744848646594,-884.66,0.00024657,2]
[358215443,1744848646604,-500.0,0.00024657,2]
[358215444,1744848646614,-500.0,0.00024657,2]
[358215445,1744848646623,-500.0,0.00024657,2]
[358215446,1744848646633,-915.42,0.00024657,2]
[358215447,1744848646643,-787.21,0.00024657,2]
[358215448,1744848646652,-603.71233229,0.00024657,2]
[358215449,1744848646662,-4307.3,0.00024657,2]
[358215450,1744848646672,-500.0,0.00024657,2]
[358215451,1744848646682,-3230.48,0.00024657,2]
[358215452,1744848646692,-500.0,0.00024657,2]
[358215453,1744848646701,-500.0,0.00024657,2]
[358215454,1744848646711,-2200.94,0.00024657,2]
[358215455,1744848646721,-603.46,0.00024657,2]
[358215456,1744848646731,-633.85835389,0.00024657,2]
[358215622,1744849838525,-394.0,0.000225,2]
[358215624,1744849838535,-533.2354028,0.00022557,2]
[358215626,1744849838545,-163.4324803,0.00024163,2]
[358215628,1744849838554,-500.0,0.00024499,2]
[358215630,1744849838563,-334.78554233,0.00024499,2]
[358215632,1744849838572,-500.0,0.00024499,2]
[358215634,1744849838581,-500.0,0.00024499,2]
[358215636,1744849838590,-500.0,0.00024499,2]
[358215638,1744849838600,-500.0,0.00024499,2]
[358215640,1744849838610,-300.46012483,0.00024499,2]
[358215642,1744849838619,-35.7582053,0.000245,2]
[358215645,1744849838635,-4964.2417947,0.000245,2]
[358215647,1744849838644,-14399.76533301,0.000245,2]
[358215790,1744849840768,-5572.98454052,0.000245,2]
[358215822,1744849843869,-4524.45784964,0.000245,2]
[358215881,1744849846821,-22357.05187711,0.000245,2]
[358215981,1744849866995,161.91106287,0.00023,30]
[358215982,1744850501866,544.07,0.00023,30]
[358216012,1744851032760,-460.6209158,0.000209,2]
[358216013,1744851032771,-300.0,0.00023359,2]
[358216014,1744851032780,-300.0,0.0002336,2]
[358216015,1744851032800,-24407.8423176,0.00023364,2]
[358216016,1744851032811,-183.5765783,0.00023541,2]
[358216017,1744851032821,-2370.2614995,0.00023626,2]
[358216018,1744851032831,-163.4324803,0.00024163,2]
[358216019,1744851032841,-177.23946872,0.00024299,2]
[358216020,1744851032852,-422.60017791,0.00024397,2]
[358216021,1744851032861,-500.0,0.00024397,2]
[358216022,1744851032871,-19578.2958457,0.00024398,2]
[358216023,1744851032882,-12050.17197577,0.00024398,3]
[358216024,1744851032892,-515.25654594,0.00024399,3]
[358216025,1744851032902,-36457.52833383,0.000244,2]
[358216027,1744851032912,-1349.803774,0.000244,2]
[358216029,1744851032922,-1349.803774,0.000244,2]
[358216031,1744851032932,-151.0,0.000244,2]
[358216032,1744851032941,-151.8063814,0.000244,2]
[358216033,1744851032951,-151.0,0.000244,2]
[358216034,1744851032962,-151.0,0.000244,2]
[358216035,1744851032973,-151.0,0.000244,2]
[358216036,1744851032983,-151.0,0.000244,2]
[358216037,1744851032993,-838.91012072,0.00024491,2]
[358216038,1744851033003,-9439.16368888,0.000245,2]
[358216039,1744851033017,-3186.1115683,0.000245,2]
[358216040,1744851033043,-3709.71608063,0.000245,2]
[358216216,1744851041001,-500.0,0.00023359,2]
[358216218,1744851041011,-500.0,0.00023359,2]
[358216220,1744851041020,-500.0,0.00023359,2]
[358216222,1744851041030,-500.0,0.00023359,2]
[358216224,1744851041040,-500.0,0.00023359,2]
[358216226,1744851041049,-500.0,0.00023359,2]
[358216228,1744851041059,-500.0,0.00023359,2]
[358216230,1744851041068,-500.0,0.00023359,2]
[358216232,1744851041078,-500.0,0.00023359,2]
[358216234,1744851041087,-500.0,0.00023359,2]
[358216236,1744851041097,-500.0,0.00023359,2]
[358216238,1744851041106,-500.0,0.00023359,2]
[358216240,1744851041115,-500.0,0.00023359,2]
[358216242,1744851041124,-500.0,0.00023359,2]
[358216244,1744851041134,-500.0,0.00023359,2]
[358216246,1744851041143,-376.4124786,0.00023359,2]
[358216248,1744851041153,-500.0,0.00023359,2]
[358216250,1744851041162,-500.0,0.00023359,2]
[358216252,1744851041171,-500.0,0.00023359,2]
[358216254,1744851041180,-500.0,0.00023359,2]
[358216256,1744851041190,-500.0,0.00023359,2]
[358216258,1744851041199,-500.0,0.00023359,2]
[358216260,1744851041210,-500.0,0.00023359,2]
[358216262,1744851041219,-500.0,0.00023359,2]
[358216264,1744851041228,-500.0,0.00023359,2]
[358216266,1744851041238,-500.0,0.00023359,2]
[358216269,1744851041248,-500.0,0.00023359,2]
[358216270,1744851041258,-500.0,0.00023359,2]
[358216271,1744851041267,-500.0,0.00023359,2]
[358216273,1744851041277,-500.0,0.00023359,2]
[358216275,1744851041286,-500.0,0.00023359,2]
[358216278,1744851041296,-500.0,0.00023359,2]
[358216279,1744851041305,-500.0,0.00023359,2]
[358216280,1744851041315,-500.0,0.00023359,2]
[358216281,1744851041324,-500.0,0.00023359,2]
[358216282,1744851041334,-500.0,0.00023359,2]
[358216283,1744851041343,-151.0,0.000244,2]
[358216284,1744851041353,-151.0,0.000244,2]
[358216285,1744851041363,-46008.22301912,0.000245,2]
[358216316,1744851046863,-12501.36592457,0.00024298,2]
[358216317,1744851046875,-4570.86198445,0.00024298,2]
[358216362,1744852231899,-300.0,0.00021915,2]
[358216364,1744852231909,-645.82012454,0.00021916,2]
[358216366,1744852231919,-500.0,0.00021916,2]
[358216368,1744852231928,-287.64124786,0.00021916,2]
[358216370,1744852231938,-500.0,0.00021916,2]
[358216372,1744852231947,-500.0,0.00021916,2]
[358216375,1744852231957,-500.0,0.00021916,2]
[358216376,1744852231966,-500.0,0.00021916,2]
[358216379,1744852231975,-500.0,0.00021916,2]
[358216381,1744852231985,-500.0,0.00021916,2]
[358216383,1744852231995,-12532.48372237,0.00021917,2]
[358216384,1744852232005,-6025.08598788,0.00021917,3]
[358216386,1744852232014,-500.0,0.00021917,2]
[358216389,1744852232024,-500.0,0.00021917,2]